Cogmind - Beta 9.2 @@@ ROGUE MODE // 2019.11.15 @ 22:14:45 Player: fartblaster Result: Destroyed by Y-45 Defender with Beam Rifle Performance ------------- Evolutions (1) 500 Regions Visited (2) 400 Robots Destroyed (36) 180 Value Destroyed (798) 798 Prototype IDs (0) 0 Alien Tech Used (0) 0 Bonus (30) 30 TOTAL SCORE: 1908 Bonus ------- High Alert Combat Kills 30 Cogmind --------- Core Integrity 0/400 Matter 15/300 Energy 100/100 System Corruption 6% Temperature Cool (9) Movement Core (550) Ox10 Location -9/Materials Parts ------- > --- POWER (1) -------- (None) > --- PROPULSION (4) --- (None) > --- UTILITY (2) ------ Large Storage Unit Large Storage Unit > --- WEAPON (2) ------- (None) > --- INVENTORY (16) --- Small Matter Pod (0) Light Armor Plating Light Cannon Peak State ------------ > --- POWER ------------ Light Nuclear Core > --- PROPULSION ------- Light Treads Light Treads Light Treads > --- UTILITY ---------- Small Storage Unit Small Battery > --- WEAPON ----------- Medium Laser Rocket Launcher > --- INVENTORY -------- Ion Engine Small Matter Pod Light Armor Plating Small Laser Particle Cannon Light Cannon [Rating: 11] Favorites ----------- Power Ion Engine Engine Ion Engine Power Core Light Nuclear Core Propulsion Light Treads Treads Light Treads Utility Small Storage Unit Storage Small Storage Unit Weapon Small Laser Energy Gun Small Laser Energy Cannon Particle Cannon Ballistic Cannon Light Cannon Launcher Rocket Launcher Build | -11 -10 -9 ------- Run | Scr Mat Mat Slots Evolved 2 | . . 2 Power . | . . . Propulsion 2 | . . 2 Utility . | . . . Weapon . | . . . Parts Attached 27 | 6 8 13 Power 3 | 1 1 1 Engine 2 | 1 . 1 Core 1 | . 1 . Reactor . | . . . Propulsion 3 | 2 . 1 Treads 3 | 2 . 1 Leg . | . . . Wheel . | . . . Hover . | . . . Flight . | . . . Utility 4 | 1 1 2 Device . | . . . Storage 4 | 1 1 2 Processor . | . . . Hackware . | . . . Protection . | . . . Artifact . | . . . Weapon 17 | 2 6 9 Energy Gun 7 | 2 3 2 Energy Cannon 2 | . 1 1 Ballistic Gun . | . . . Ballistic Cannon 3 | . 1 2 Launcher 5 | . 1 4 Special Weapon . | . . . Impact Weapon . | . . . Slashing Weapon . | . . . Piercing Weapon . | . . . Special Melee Weapon . | . . . Unidentified Prototypes . | . . . Parts Lost 13 | . 1 12 Power 2 | . . 2 Propulsion 3 | . . 3 Utility 1 | . . 1 Weapon 7 | . 1 6 Highest Loss Streak 7 | . 1 7 Average Slot Usage (%) 81 | . 91 65 Engine 6 | . 9 2 Core 5 | . 4 5 Treads 24 | . 28 18 Storage 20 | . 20 21 Energy Gun 17 | . 23 7 Energy Cannon 2 | . 2 4 Ballistic Cannon 2 | . 1 3 Launcher 1 | . . 4 Naked Turns . | . . . Heaviest Build 44 | 11 16 44 Greatest Support 60 | 40 40 60 Greatest Overweight (x) 13 | . . 13 Average Overweight (x) . | . . . Largest Inventory Capacity 16 | 6 6 16 Average Capacity 6 | 4 6 8 Most Carried 6 | 1 6 6 Average Carried 4 | . 4 4 Final Capacity 16 | 6 6 16 Final Carried 6 | 1 6 3 Class Distribution -------------------- 100% | Mutant Dominant Class ---------------- Mutant | -10/Materials Mutant | -9/Materials Resources | -11 -10 -9 ----------- Run | Scr Mat Mat Matter Collected 469 | 260 61 148 Remotely . | . . . Salvage Created 737 | 88 238 411 Parts 55 | 1 14 40 Haulers Intercepted 2 | . . 2 Recyclers Shooed . | . . . Parts Field Recycled . | . . . Retrieved Matter . | . . . Parts Self-Destructed . | . . . Prevented . | . . . Kills | -11 -10 -9 ------- Run | Scr Mat Mat Combat Hostiles Destroyed 21 | . 7 14 Guns 5 | . 5 . Cannons 1 | . . 1 AOE 15 | . 2 13 Classes Destroyed 11 | 1 3 7 Worker 2 | . . 2 Builder 5 | . . 5 Hauler 2 | . . 2 Recycler 1 | 1 . . Operator 2 | . . 2 Watcher 3 | . 1 2 Swarmer 7 | . 3 4 Grunt 11 | . 4 7 Brawler 1 | . . 1 Duelist 1 | . . 1 Sentry 1 | . . 1 Best Kill Streak 10 | 1 3 10 Combat Bots Only 4 | . 3 4 Max Kills in Single Turn 7 | 1 1 7 Gunslinging . | . . . Exploded 4 | . 1 4 Melee . | . . . Uniques/NPCs Destroyed . | . . . Combat | -11 -10 -9 -------- Run | Scr Mat Mat Damage Taken 1960 | . 350 1610 Core 446 | . 34 412 Absorbed by Shields . | . . . Core Remaining (%) 93 | 100 86 . Volleys Fired 62 | 4 26 32 Largest 2 | 2 2 2 Hottest 113 | 80 90 113 Shots Fired 89 | 8 42 39 Gun 52 | 8 37 7 Cannon 8 | . 3 5 Launcher 29 | . 2 27 Special . | . . . Kinetic 4 | . 3 1 Thermal 54 | 8 37 9 Explosive 29 | . 2 27 Electromagnetic 2 | . . 2 Robot Hit Streak 12 | 5 12 10 Robot Miss Streak 3 | 2 3 2 Penetration Max . | . . . Secondary Targets . | . . . Shots Hit Robots 57 | 5 27 25 Core Hits 58 | 2 14 42 Critical Hits 1 | . 1 . Critical Kills 1 | . 1 . Critical Parts Destroyed . | . . . Melee Attacks . | . . . Impact . | . . . Slashing . | . . . Piercing . | . . . Sneak Attacks . | . . . Combat Hostiles . | . . . Follow-up Attacks . | . . . Damage Inflicted 2483 | 54 429 2000 Guns 394 | 54 303 37 Cannons 52 | . 36 16 Explosions 2037 | . 90 1947 Melee . | . . . Ramming . | . . . Kinetic 52 | . 36 16 Thermal 540 | 54 303 183 Explosive 1891 | . 90 1801 Electromagnetic . | . . . Impact . | . . . Slashing . | . . . Piercing . | . . . Highest Corruption 6 | . . 6 Average Corruption 6 | . . 6 Corruption Purged . | . . . Effects 6 | . . 6 Message Errors 1 | . . 1 Matter Fused 1 | . . 1 Heat Flow Errors 2 | . . 2 Parts Rejected 1 | . . 1 Weapon Failures 1 | . . 1 Overload Shots . | . . . Overflow Damage 92 | . 6 86 Projectiles 6 | . 6 . Explosions 86 | . . 86 Melee . | . . . Knockbacks 1 | . 1 . Impact . | . . . Kinetic 1 | . 1 . Secondary . | . . . Self-Inflicted Damage 111 | . 10 101 Shots 4 | . 1 3 Rammed . | . . . Targets Rammed . | . . . Kicked . | . . . Crushed . | . . . Highest Temperature 350 | 9 126 350 Average Temperature 75 | 4 58 114 Received Heat Transfer 387 | . 117 270 Effects 3 | . . 3 Shutdowns 1 | . . 1 Interference 2 | . . 2 Siege Activations . | . . . Robots Corrupted . | . . . Combat Hostiles . | . . . Parts Fried . | . . . Impact Corruptions . | . . . Robots Melted . | . . . Combat Hostiles . | . . . Parts Melted 1 | 1 . . Heat Transferred 1071 | 125 735 211 Parts Sabotaged . | . . . Parts Stolen . | . . . Parts Stripped . | . . . Power Chain Reactions . | . . . Missiles Intercepted . | . . . Alert | -11 -10 -9 ------- Run | Scr Mat Mat Peak Influence 460 | 5 137 460 Average Influence 143 | 3 62 301 Maximum Alert Level 2 | . . 2 Low Security (%) 74 | 100 100 26 Level 1 7 | . . 21 Level 2 18 | . . 51 Level 3 . | . . . Level 4 . | . . . Level 5 . | . . . High Security . | . . . Max Security . | . . . Squads Dispatched 3 | . . 3 Investigation . | . . . Extermination . | . . . Reinforcement 3 | . . 3 Assault . | . . . Garrison . | . . . Intercept . | . . . Construction Impeded 1 | . . 1 Haulers Reinforced . | . . . Stealth | -11 -10 -9 --------- Run | Scr Mat Mat Distress Signals 3 | . 1 2 Communications Jammed . | . . . Distress Signals . | . . . Times Spotted 37 | . 14 23 Peak Tracking Total 5 | . 3 5 Tactical Retreats 5 | . 4 1 Traps | -11 -10 -9 ------- Run | Scr Mat Mat Traps Triggered . | . . . Indirectly . | . . . Trap Hack Attempts . | . . . Triggered . | . . . Disarmed . | . . . Reprogrammed . | . . . Reused . | . . . Traps Extracted . | . . . Installed . | . . . Triggered . | . . . Machines | -11 -10 -9 ---------- Run | Scr Mat Mat Machines Disabled 7 | . . 7 Max in Single Turn 3 | . . 3 Machines Sabotaged . | . . . Garrisons Compromised . | . . . Overloaded Fab Kills . | . . . Fab Network Shutdowns . | . . . Hacking | -11 -10 -9 --------- Run | Scr Mat Mat Machines Accessed . | . . . Terminals . | . . . Fabricators . | . . . Repair Stations . | . . . Recycling Units . | . . . Scanalyzers . | . . . Garrison Access . | . . . Total Hacks . | . . . Successful . | . . . Failed . | . . . Catastrophic . | . . . Database Lockouts . | . . . Manual . | . . . Terminals . | . . . Fabricators . | . . . Repair Stations . | . . . Recycling Units . | . . . Scanalyzers . | . . . Garrison Access . | . . . Terminal Hacks . | . . . Fabricator Hacks . | . . . Repair Station Hacks . | . . . Recycling Unit Hacks . | . . . Scanalyzer . | . . . Garrison Access Hacks . | . . . Unauthorized Hacks . | . . . Terminals . | . . . Fabricators . | . . . Repair Stations . | . . . Recycling Units . | . . . Scanalyzers . | . . . Garrison Access . | . . . Data Cores Recovered . | . . . Used . | . . . Hacking Detections . | . . . Full Trace Events . | . . . Feedback Events . | . . . Feedback Blocked . | . . . Robot Schematics Acquired . | . . . Robots Built . | . . . Matter . | . . . Time . | . . . Total Robot Build Rating . | . . . Part Schematics Acquired . | . . . Parts Built . | . . . Matter . | . . . Time . | . . . Total Part Build Rating . | . . . Parts Repaired . | . . . Time . | . . . Parts Recycled . | . . . Recycled Matter . | . . . Retrieved Matter . | . . . Retrieved Components . | . . . Parts Scanalyzed . | . . . Part Schematics Acquired . | . . . Parts Damaged . | . . . Bothacking | -11 -10 -9 ------------ Run | Scr Mat Mat Used RIF Installer . | . . . Robots Hacked . | . . . Non-combat . | . . . Combat . | . . . Robot Hacks Applied . | . . . Relay Couplers Released . | . . . Robots Rewired . | . . . Allies Hacked . | . . . Hacks Repelled . | . . . Allies | -11 -10 -9 -------- Run | Scr Mat Mat Total Allies . | . . . Largest Group . | . . . Highest-Rated Group . | . . . Highest-Rated Ally . | . . . Total Orders . | . . . Ally Attacks . | . . . Total Damage . | . . . Kills . | . . . Allies Corrupted . | . . . Allies Melted . | . . . Intel | -11 -10 -9 ------- Run | Scr Mat Mat Robot Analysis Total . | . . . Derelict Logs Recovered . | . . . Drone Launches . | . . . Drone Recoveries . | . . . Exploration | -11 -10 -9 ------------- Run | Scr Mat Mat Turns Passed 1258 | 84 728 446 Spaces Moved 617 | 42 375 200 Core 8 | 4 . 4 Treads 609 | 38 375 196 Legs . | . . . Wheels . | . . . Hover . | . . . Flight . | . . . Fastest Speed 50 | 50 160 160 Average Speed 164 | 149 160 176 Slowest Speed 700 | 160 160 700 Overloaded Moves . | . . . Propulsion Burnouts . | . . . Robots Hopped . | . . . Cave-ins Triggered 1 | . . 1 Exploration Rate (%) 28 | 4 51 29 Regions Visited 2 Branch Regions . Pre-discovered Areas . | . . . Known Exits Taken . | . . . Unknown Exits Taken 2 | 1 1 . Scrap Searched . | . . . Spaces Dug . | . . . Terrain Destroyed 174 | . 17 157 Melee . | . . . Projectile . | . . . AOE 174 | . 17 157 Actions | -11 -10 -9 --------- Run | Scr Mat Mat Total 765 | 52 461 252 Wait 43 | . 40 3 Move 615 | 41 374 200 Hop . | . . . Pick Up 11 | 1 8 2 Fast Attach 12 | 6 2 4 Attach 4 | . . 4 Detach . | . . . Swap 11 | . 6 5 Drop 7 | . 5 2 Fire 62 | 4 26 32 Melee . | . . . Ram . | . . . Kick . | . . . Crush . | . . . Escape Stasis . | . . . Rewire . | . . . Trap . | . . . Miscellaneous . | . . . Route ------- -11/Scrapyard -10/Materials (discovered 2 exits: [*Mat] / [*Min]) -9/Materials (discovered 1 exit: [*Mat]) History --------- Turn | Location | Event 19 | -11/Scrapyard | Discovered new exit (range 15) 85 | -11/Scrapyard | Entered Materials 316 | -10/Materials | Build established: Mutant 404 | -10/Materials | Discovered new exit (range 6) 723 | -10/Materials | Discovered new exit (range 16) 813 | -10/Materials | Entered another Materials area 813 | -9/Materials | Evolved 2 slots: Propulsion x2 1080 | -9/Materials | Crushed by falling debris 1080 | -9/Materials | Core integrity fell below 50% 1111 | -9/Materials | Lost 7 parts (1p2n1u3w) 1197 | -9/Materials | Discovered new exit (range 16) 1239 | -9/Materials | Core integrity fell below 20% 1259 | -9/Materials | Destroyed by Y-45 Defender with Beam Rifle Last Messages --------------- 01212_ Door malfunctions. 01215_ System corrupted: Hvy. EM Pulse Gun failed to cycle. 01216_ K-01 Serf collects debris. 01217_ Power failure, Ion Engine shutdown. 01218_ Overheating: System interference. 01218_ Hvy. EM Pulse Gun temporarily disabled. 01219_ Door malfunctions. 01221_ K-01 Serf collects debris. 01231_ Hvy. EM Pulse Gun destroyed. 01232_ Lgt. Treads destroyed. 01233_ Particle Cannon destroyed. 01236_ Ion Engine destroyed. 01240_ Acquired Rocket Launcher. 01241_ System corrupted: Rocket Launcher rejected. 01247_ Acquired Rocket Launcher. 01248_ S-10 Pest destroyed. 01248_ Destroyed Flight Unit. 01248_ S-10 Pest destroyed. 01253_ Rocket Launcher destroyed. 01256_ Acquired 10 matter. Map ----- +----------------------------------------------------+ | | | | | | | | | | | | | | | | | | | | | ???????????????????????????###???????????????????? | | ??????????????????????????? ???????????????????? | | ?????????????????????????? ??????????????????? | | ???????????????????????# """ """ ##??????????????? | | ???????????????????????# """ """ +???????????????? | | ???????????????????????# """ """ #???????????????? | | ???????????????????????# """ """ #?????????????# ? | | ???????????????????????? """ """ ??????????????# | | ?????????????????????????? ??############### | | ???????????????#############+##### ! # # " | | ???????????????# %/" # + " | | ???????????????# < #### = # # " | | ???????????????# #??# / # | | ???????????????####### %###### """ """ # | | ???????????????????#! [%* # """ """ # ## | | ??????????????????## %@=[ # """ """ # !!## | | ??????????????????#Y [[] # # # # | | ??????????????????## [[ ########### !! | | ???????????????????# []] #????????## | | ???????????????????# ] #????????## | | ???????????????????###############????????## | | ???????????????????????????????????????##### " | | ??????????????????????????????????????##!!## | | ??????????????????????????????????????#! | | ??????????????????????????????????????# | | ??????????????????????????????????????# | | ??????????????????????????????????????#! | | ??????????????????????????????????????##!! | | ???????????????????????????????????????########## | | ???????????????????????????????????????????????# | | ???????????????????????????????????????????????## | | ????????????????????????????????????????????????## | | ?????????????????????????????????????????????????? | | ?????????????????????????????????????????????????? | | ???????????????????????????????????????????????! | | ?????????????????????????????????????????????# | | ?????????????????????????????????????????????# """ | | ?????????????????????????????????????????????? """ | | ???????????????????????????????????????????????""" | | ??????????????????????????????????????????????? | +----------------------------------------------------+ Best States ------------- Heat Dissipation 28 Energy Generation 14 Energy Capacity 350 Matter Stores 300 Matter Capacity 300 Sight Range 16 Terrain Scan Density 10 Evasion (%) 40 Recoil Reduction 3 Item Schematics ----------------- None Robot Schematics ------------------ None Fabricated ------------ Nothing Alien Tech Used ----------------- None Achievements -------------- None Challenges ------------ None Game ------ Seed StasisDroneNetwork Manual? 0 Play Time 00:12:59 Cumulative 16.0 hours Start 2019.11.15 @ 22:03:01 End 2019.11.15 @ 22:14:45 Sessions 1 Manual Loads 0 Difficulty Rogue Special Mode None Game No. 46 Rogue 46 Adventurer 0 Explorer 0 Win Type - Total 0 Types 0/0/0/0/0/0/0 Lore% 7 Gallery% 20 Achievement% 13 Wizard Run 0 Options --------- ASCII 0 Keyboard 1 Movement Numpad Keybinds 0 Fullscreen 1 Font 18/SmallcapsGlow Map View 76x50 Tactical HUD 1 Map Filters NONE Filters NONE Steam 1 RUN: 2d0e46ba-97ec-4a2b-b2c1-072c58b2ae65